fUSD/lending_fUSD_20250530
["ID","MTS","AMOUNT","RATE_DAILY","PERIOD"]
[363166539,1748605858688,-420.0,0.00022739,2]
[363166540,1748605858698,-420.0,0.00022739,2]
[363166541,1748605858708,-1147.25,0.00022739,2]
[363166542,1748605858717,-864.57,0.00022739,2]
[363166543,1748605858727,-921.63,0.00022739,2]
[363166544,1748605858736,-1120.48,0.00022739,2]
[363166545,1748605858746,-664.44,0.00022739,2]
[363166546,1748605858756,-420.0,0.00022739,2]
[363166547,1748605858766,-438.16769462,0.00022739,2]
[363166548,1748605858775,-420.0,0.00022739,2]
[363166549,1748605858785,-420.0,0.00022739,2]
[363166550,1748605858795,-420.0,0.00022739,2]
[363166551,1748605858804,-927.81,0.00022739,2]
[363166552,1748605858814,-774.57,0.00022739,2]
[363166553,1748605858823,-626.06,0.00022739,2]
[363166554,1748605858833,-420.0,0.00022739,2]
[363166555,1748605858843,-620.96,0.00022739,2]
[363166556,1748605858852,-933.42,0.00022739,2]
[363166557,1748605858862,-2116.24,0.00022739,2]
[363166558,1748605858872,-577.62,0.00022739,2]
[363166559,1748605858882,-420.0,0.00022739,2]
[363166560,1748605858892,-420.0,0.00022739,2]
[363166561,1748605858902,-1221.59,0.00022739,2]
[363166562,1748605858913,-420.0,0.00022739,2]
[363166563,1748605858922,-4048.78,0.00022739,2]
[363166564,1748605858932,-459.04,0.00022739,2]
[363166565,1748605858941,-658.11,0.00022739,2]
[363166566,1748605858951,-627.21,0.00022739,2]
[363166567,1748605858961,-420.0,0.00022739,2]
[363166568,1748605858970,-1969.36,0.00022739,2]
[363166569,1748605858979,-420.0,0.00022739,2]
[363166570,1748605858989,-1915.49,0.00022739,2]
[363166571,1748605858998,-420.0,0.00022739,2]
[363166572,1748605859008,-420.0,0.00022739,2]
[363166573,1748605859018,-250.0,0.00022739,2]
[363166574,1748605859027,-856.27,0.00022739,2]
[363166575,1748605859037,-4677.87,0.00022739,2]
[363166576,1748605859047,-1646.48,0.00022739,2]
[363166577,1748605859057,-524.0,0.00022739,2]
[363166578,1748605859067,-420.0,0.00022739,2]
[363166579,1748605859076,-3698.85,0.00022739,2]
[363166580,1748605859086,-615.26,0.00022739,2]
[363166581,1748605859096,-7636.36,0.00022739,2]
[363166582,1748605859105,-420.0,0.00022739,2]
[363166583,1748605859115,-867.03,0.00022739,2]
[363166584,1748605859124,-420.0,0.00022739,2]
[363166585,1748605859134,-1865.89,0.00022739,2]
[363166586,1748605859143,-7173.39,0.00022739,2]
[363166587,1748605859153,-867.4,0.00022739,2]
[363166588,1748605859164,-1236.82,0.00022739,2]
[363166589,1748605859174,-547.8,0.00022739,2]
[363166590,1748605859183,-999.38,0.00022739,2]
[363166591,1748605859193,-420.0,0.00022739,2]
[363166592,1748605859203,-178.11312863,0.00022739,2]
[363166593,1748605859212,-420.0,0.00022739,2]
[363166594,1748605859222,-420.0,0.00022739,2]
[363166595,1748605859231,-477.23,0.00022739,2]
[363166596,1748605859241,-438.67,0.00022739,2]
[363166597,1748605859251,-894.76,0.00022739,2]
[363166598,1748605859261,-2099.33,0.00022739,2]
[363166599,1748605859273,-420.0,0.00022739,2]
[363166600,1748605859283,-6481.04,0.00022739,2]
[363166601,1748605859293,-690.37,0.00022739,2]
[363166602,1748605859303,-1161.74,0.00022739,2]
[363166603,1748605859314,-8764.41,0.00022739,2]
[363166604,1748605859323,-1259.85,0.00022739,2]
[363166605,1748605859333,-953.75,0.00022739,2]
[363166606,1748605859344,-851.02,0.00022739,2]
[363166607,1748605859354,-2656.72,0.00022739,2]
[363166608,1748605859364,-420.0,0.00022739,2]
[363166609,1748605859374,-887.21,0.00022739,2]
[363166610,1748605859383,-420.0,0.00022739,2]
[363166611,1748605859394,-458.66,0.00022739,2]
[363166612,1748605859403,-457.72,0.00022739,2]
[363166613,1748605859414,-552.45,0.00022739,2]
[363166614,1748605859425,-19541.58,0.00022739,2]
[363166615,1748605859435,-13104.85,0.00022739,2]
[363166616,1748605859446,-521.49,0.00022739,2]
[363166617,1748605859456,-1072.46,0.00022739,2]
[363166618,1748605859467,-3571.23,0.00022739,2]
[363166619,1748605859476,-2191.08,0.00022739,2]
[363166620,1748605859486,-467.62,0.00022739,2]
[363166621,1748605859497,-535.24,0.00022739,2]
[363166622,1748605859507,-6362.97,0.00022739,2]
[363166623,1748605859517,-463.45,0.00022739,2]
[363166624,1748605859528,-436.04,0.00022739,2]
[363166625,1748605859539,-693.78,0.00022739,2]
[363166626,1748605859548,-2662.92,0.00022739,2]
[363166627,1748605859558,-691.26,0.00022739,2]
[363166628,1748605859568,-930.08,0.00022739,2]
[363166629,1748605859578,-1536.63,0.00022739,2]
[363166630,1748605859588,-520.51236519,0.00022739,2]
[363166631,1748605859598,-1078.87,0.00022739,2]
[363166632,1748605859608,-849.33,0.00022739,2]
[363166633,1748605859618,-884.56,0.00022739,2]
[363166634,1748605859628,-2001.24,0.00022739,2]
[363166635,1748605859637,-935.78,0.00022739,2]
[363166636,1748605859647,-420.0,0.00022739,2]
[363166637,1748605859657,-1829.69,0.00022739,2]
[363166638,1748605859667,-420.0,0.00022739,2]
[363166639,1748605859677,-540.81,0.00022739,2]
[363166640,1748605859687,-420.0,0.00022739,2]
[363166641,1748605859697,-665.6,0.00022739,2]
[363166642,1748605859707,-420.0,0.00022739,2]
[363166643,1748605859716,-620.9,0.00022739,2]
[363166644,1748605859726,-4862.61,0.00022739,2]
[363166645,1748605859736,-1334.57,0.00022739,2]
[363166646,1748605859746,-4581.85,0.00022739,2]
[363166647,1748605859756,-2823.39,0.00022739,2]
[363166648,1748605859766,-724.95,0.00022739,2]
[363166649,1748605859776,-1411.6,0.00022739,2]
[363166650,1748605859786,-651.98,0.00022739,2]
[363166651,1748605859795,-765.54,0.00022739,2]
[363166652,1748605859805,-1594.09,0.00022739,2]
[363166653,1748605859815,-831.83,0.00022739,2]
[363166654,1748605859824,-420.0,0.00022739,2]
[363166655,1748605859834,-420.0,0.00022739,2]
[363166656,1748605859844,-1195.46,0.00022739,2]
[363166657,1748605859854,-2574.23,0.00022739,2]
[363166658,1748605859864,-420.0,0.00022739,2]
[363166659,1748605859874,-1025.22,0.00022739,2]
[363166660,1748605859883,-2369.54,0.00022739,2]
[363166661,1748605859893,-2065.25,0.00022739,2]
[363166662,1748605859903,-1113.01,0.00022739,2]
[363166663,1748605859914,-2831.8,0.00022739,2]
[363166664,1748605859924,-1068.49,0.00022739,2]
[363166665,1748605859935,-613.49,0.00022739,2]
[363166666,1748605859944,-3622.62,0.00022739,2]
[363166667,1748605859954,-435.59,0.00022739,2]
[363166668,1748605859963,-3121.77,0.00022739,2]
[363166669,1748605859974,-420.0,0.00022739,2]
[363166670,1748605859984,-1104.67,0.00022739,2]
[363166671,1748605859994,-2664.09,0.00022739,2]
[363166672,1748605860004,-484.87,0.00022739,2]
[363166673,1748605860014,-467.27,0.00022739,2]
[363166674,1748605860024,-684.25,0.00022739,2]
[363166675,1748605860034,-688.21,0.00022739,2]
[363166676,1748605860045,-420.0,0.00022739,2]
[363166677,1748605860055,-478.64,0.00022739,2]
[363166678,1748605860066,-696.11,0.00022739,2]
[363166679,1748605860076,-958.22,0.00022739,2]
[363166680,1748605860086,-539.47,0.00022739,2]
[363166681,1748605860097,-1852.75,0.00022739,2]
[363166682,1748605860108,-651.94,0.00022739,2]
[363166683,1748605860119,-1120.7,0.00022739,2]
[363166684,1748605860129,-466.95,0.00022739,2]
[363166685,1748605860139,-2335.9,0.00022739,2]
[363166686,1748605860149,-711.49,0.00022739,2]
[363166687,1748605860159,-420.0,0.00022739,2]
[363166688,1748605860169,-645.66,0.00022739,2]
[363166689,1748605860179,-1424.33,0.00022739,2]
[363166690,1748605860189,-420.0,0.00022739,2]
[363166691,1748605860199,-1562.12,0.00022739,2]
[363166692,1748605860210,-420.0,0.00022739,2]
[363166693,1748605860220,-1776.41,0.00022739,2]
[363166694,1748605860230,-420.0,0.00022739,2]
[363166695,1748605860240,-751.2,0.00022739,2]
[363166696,1748605860250,-697.5,0.00022739,2]
[363166697,1748605860260,-2539.37,0.00022739,2]
[363166698,1748605860271,-420.0,0.00022739,2]
[363166699,1748605860283,-438.94,0.00022739,2]
[363166700,1748605860293,-818.24,0.00022739,2]
[363166701,1748605860303,-5764.0,0.00022739,2]
[363166702,1748605860314,-420.0,0.00022739,2]
[363166703,1748605860324,-7162.13,0.00022739,2]
[363166704,1748605860335,-499.19,0.00022739,2]
[363166705,1748605860345,-1023.17,0.00022739,2]
[363166706,1748605860356,-423.99,0.00022739,2]
[363166707,1748605860367,-597.88,0.00022739,2]
[363166708,1748605860377,-455.48,0.00022739,2]
[363166709,1748605860387,-3192.7,0.00022739,2]
[363166710,1748605860398,-420.0,0.00022739,2]
[363166711,1748605860408,-1696.71,0.00022739,2]
[363166712,1748605860419,-420.0,0.00022739,2]
[363166713,1748605860429,-1204.07,0.00022739,2]
[363166714,1748605860439,-421.81,0.00022739,2]
[363166715,1748605860450,-1055.8,0.00022739,2]
[363166716,1748605860460,-660.44,0.00022739,2]
[363166717,1748605860471,-537.4,0.00022739,2]
[363166718,1748605860481,-7497.66,0.00022739,2]
[363166719,1748605860491,-1000.0,0.00022739,2]
[363166720,1748605860502,-665.55,0.00022739,2]
[363166721,1748605860513,-1146.05,0.00022739,2]
[363166722,1748605860524,-433.4,0.00022739,2]
[363166723,1748605860534,-420.0,0.00022739,2]
[363166724,1748605860544,-5115.53,0.00022739,2]
[363166725,1748605860554,-492.23,0.00022739,2]
[363166726,1748605860565,-420.0,0.00022739,2]
[363166727,1748605860576,-420.0,0.00022739,2]
[363166728,1748605860586,-420.0,0.00022739,2]
[363166729,1748605860596,-420.0,0.00022739,2]
[363166730,1748605860606,-528.37,0.00022739,2]
[363166731,1748605860616,-512.77,0.00022739,2]
[363166732,1748605860627,-4938.81,0.00022739,2]
[363166733,1748605860637,-782.04,0.00022739,2]
[363166734,1748605860647,-1682.32,0.00022739,2]
[363166735,1748605860657,-961.79,0.00022739,2]
[363166736,1748605860667,-420.0,0.00022739,2]
[363166737,1748605860678,-420.0,0.00022739,2]
[363166738,1748605860688,-420.0,0.00022739,2]
[363166739,1748605860698,-497.78,0.00022739,2]
[363166740,1748605860708,-563.44,0.00022739,2]
[363166741,1748605860718,-785.45,0.00022739,2]
[363166742,1748605860728,-420.0,0.00022739,2]
[363166743,1748605860739,-420.0,0.00022739,2]
[363166744,1748605860749,-3229.7,0.00022739,2]
[363166745,1748605860759,-420.0,0.00022739,2]
[363166746,1748605860769,-482.13,0.00022739,2]
[363166747,1748605860779,-594.08,0.00022739,2]
[363166748,1748605860789,-507.05536986,0.00022739,2]
[363166749,1748605860799,-908.54,0.00022739,2]
[363166750,1748605860809,-82047.63,0.00022739,2]
[363166751,1748605860819,-420.0,0.00022739,2]
[363166752,1748605860830,-420.0,0.00022739,2]
[363166753,1748605860840,-584.27,0.00022739,2]
[363166754,1748605860850,-984.23,0.00022739,2]
[363166755,1748605860860,-1509.37,0.00022739,2]
[363166756,1748605860871,-430.71,0.00022739,2]
[363166757,1748605860880,-420.0,0.00022739,2]
[363166758,1748605861130,-1254.01,0.00022739,2]
[363166759,1748605861141,-420.0,0.00022739,2]
[363166760,1748605861151,-420.0,0.00022739,2]
[363166761,1748605861160,-420.0,0.00022739,2]
[363166762,1748605861170,-1567.14,0.00022739,2]
[363166763,1748605861179,-2030.73,0.00022739,2]
[363166764,1748605861189,-666.87,0.00022739,2]
[363166765,1748605861199,-420.0,0.00022739,2]
[363166766,1748605861208,-420.0,0.00022739,2]
[363166767,1748605861218,-999.41,0.00022739,2]
[363166768,1748605861228,-618.43,0.00022739,2]
[363166769,1748605861238,-420.0,0.00022739,2]
[363166770,1748605861247,-21205.53,0.00022739,2]
[363166771,1748605861257,-4227.82,0.00022739,2]
[363166772,1748605861267,-494.14,0.00022739,2]
[363166773,1748605861281,-759.02,0.00022739,2]
[363166774,1748605861290,-2236.29,0.00022739,2]
[363166775,1748605861301,-1179.69,0.00022739,2]
[363166776,1748605861310,-3069.56,0.00022739,2]
[363166777,1748605861322,-155.08544795,0.00022765,2]
[363166778,1748605861333,-1187.19,0.000228,2]
[363166779,1748605861343,-230778.04,0.000228,7]
[363166780,1748605861354,-1900.0,0.000228,8]
[363166781,1748605861365,-2400.0,0.000229,8]
[363166782,1748605861375,-151.0,0.00023013,7]
[363166783,1748605861385,-420.0,0.00023013,2]
[363166784,1748605861395,-420.0,0.00023013,2]
[363166785,1748605861405,-420.0,0.00023013,2]
[363166786,1748605861415,-420.0,0.00023013,2]
[363166787,1748605861425,-420.0,0.00023013,2]
[363166788,1748605861435,-420.0,0.00023013,2]
[363166789,1748605861445,-420.0,0.00023013,2]
[363166790,1748605861455,-420.0,0.00023013,2]
[363166791,1748605861465,-425.32319039,0.00023013,2]
[363166792,1748605861475,-420.0,0.00023013,2]
[363166793,1748605861485,-420.0,0.00023013,2]
[363166794,1748605861495,-420.0,0.00023013,2]
[363166795,1748605861506,-420.0,0.00023013,2]
[363166796,1748605861516,-420.0,0.00023013,2]
[363166797,1748605861526,-297.55843833,0.00023013,2]
[363166798,1748605861536,-420.0,0.00023013,2]
[363166799,1748605861545,-420.0,0.00023013,2]
[363166800,1748605861556,-420.0,0.00023013,2]
[363166801,1748605861566,-420.0,0.00023013,2]
[363166802,1748605861575,-420.0,0.00023013,2]
[363166803,1748605861586,-420.0,0.00023013,2]
[363166804,1748605861596,-567.36,0.00023013,2]
[363166805,1748605861606,-420.0,0.00023013,2]
[363166806,1748605861616,-542.97,0.00023013,2]
[363166807,1748605861625,-283.95541356,0.00023013,2]
[363166808,1748605861635,-420.0,0.00023013,2]
[363166809,1748605861644,-420.0,0.00023013,2]
[363166810,1748605861654,-420.0,0.00023013,2]
[363166811,1748605861665,-420.0,0.00023013,2]
[363166812,1748605861675,-574.43,0.00023013,2]
[363166813,1748605861685,-420.0,0.00023013,2]
[363166814,1748605861695,-420.0,0.00023013,2]
[363166815,1748605861704,-173.19316204,0.00023013,2]
[363166816,1748605861714,-420.0,0.00023013,2]
[363166817,1748605861724,-420.0,0.00023013,2]
[363166818,1748605861733,-420.0,0.00023013,2]
[363166819,1748605861743,-420.0,0.00023013,2]
[363166820,1748605861753,-420.0,0.00023013,2]
[363166821,1748605861763,-420.0,0.00023013,2]
[363166822,1748605861772,-420.0,0.00023013,2]
[363166823,1748605861782,-449.48,0.00023013,2]
[363166824,1748605861792,-420.0,0.00023013,2]
[363166825,1748605861801,-420.0,0.00023013,2]
[363166826,1748605861811,-436.68,0.00023013,2]
[363166827,1748605861821,-1007.56,0.00023013,2]
[363166828,1748605861831,-448.1,0.00023013,2]
[363166829,1748605861840,-420.0,0.00023013,2]
[363166830,1748605861850,-420.0,0.00023013,2]
[363166831,1748605861860,-420.0,0.00023013,2]
[363166832,1748605861869,-673.95,0.00023013,2]
[363166833,1748605861879,-420.0,0.00023013,2]
[363166834,1748605861889,-420.0,0.00023013,2]
[363166835,1748605861899,-423.71,0.00023013,2]
[363166836,1748605861909,-420.0,0.00023013,2]
[363166837,1748605861919,-420.0,0.00023013,2]
[363166838,1748605861929,-446.37,0.00023013,2]
[363166839,1748605861939,-420.0,0.00023013,2]
[363166840,1748605861950,-420.0,0.00023013,2]
[363166841,1748605861960,-808.02,0.00023013,2]
[363166842,1748605861971,-420.0,0.00023013,2]
[363166843,1748605861981,-420.0,0.00023013,2]
[363166844,1748605861991,-420.0,0.00023013,2]
[363166845,1748605862001,-531.4,0.00023013,2]
[363166846,1748605862011,-510.45,0.00023013,2]
[363166847,1748605862021,-420.0,0.00023013,2]
[363166848,1748605862031,-420.0,0.00023013,2]
[363166849,1748605862041,-728.34,0.00023013,2]
[363166850,1748605862050,-420.0,0.00023013,2]
[363166851,1748605862060,-504.92,0.00023013,2]
[363166852,1748605862070,-420.0,0.00023013,2]
[363166853,1748605862080,-420.0,0.00023013,2]
[363166854,1748605862090,-420.0,0.00023013,2]
[363166855,1748605862099,-420.0,0.00023013,2]
[363166856,1748605862109,-420.0,0.00023013,2]
[363166857,1748605862119,-940.5,0.00023013,2]
[363166858,1748605862129,-420.0,0.00023013,2]
[363166859,1748605862139,-425.06,0.00023013,2]
[363166860,1748605862149,-532.57,0.00023013,2]
[363166861,1748605862158,-420.0,0.00023013,2]
[363166862,1748605862168,-881.82,0.00023013,2]
[363166863,1748605862178,-951.97,0.00023013,2]
[363166864,1748605862187,-843.2,0.00023013,2]
[363166865,1748605862197,-420.0,0.00023013,2]
[363166866,1748605862207,-597.12,0.00023013,2]
[363166867,1748605862216,-420.0,0.00023013,2]
[363166868,1748605862225,-420.0,0.00023013,2]
[363166869,1748605862235,-420.0,0.00023013,2]
[363166870,1748605862245,-420.0,0.00023013,2]
[363166871,1748605862254,-420.0,0.00023013,2]
[363166872,1748605862264,-420.0,0.00023013,2]
[363166873,1748605862275,-728.78,0.00023013,2]
[363166874,1748605862291,-420.0,0.00023013,2]
[363166875,1748605862302,-420.0,0.00023013,2]
[363166876,1748605862312,-420.0,0.00023013,2]
[363166877,1748605862322,-1054.49,0.00023013,2]
[363166878,1748605862333,-420.0,0.00023013,2]
[363166879,1748605862343,-420.0,0.00023013,2]
[363166880,1748605862353,-420.0,0.00023013,2]
[363166881,1748605862364,-568.03,0.00023013,2]
[363166882,1748605862374,-420.0,0.00023013,2]
[363166883,1748605862384,-420.0,0.00023013,2]
[363166884,1748605862394,-788.03,0.00023013,2]
[363166885,1748605862404,-1066.18,0.00023013,2]
[363166886,1748605862415,-420.0,0.00023013,2]
[363166887,1748605862424,-420.0,0.00023013,2]
[363166888,1748605862434,-420.0,0.00023013,2]
[363166889,1748605862444,-1077.38,0.00023013,2]
[363166890,1748605862454,-420.0,0.00023013,2]
[363166891,1748605862464,-420.0,0.00023013,2]
[363166892,1748605862473,-425.6,0.00023013,2]
[363166893,1748605862483,-420.0,0.00023013,2]
[363166894,1748605862493,-1270.78,0.00023013,2]
[363166895,1748605862503,-817.51,0.00023013,2]
[363166896,1748605862513,-420.0,0.00023013,2]
[363166897,1748605862522,-420.0,0.00023013,2]
[363166898,1748605862532,-708.32,0.00023013,2]
[363166899,1748605862542,-1537.61,0.00023013,2]
[363166900,1748605862551,-420.0,0.00023013,2]
[363166901,1748605862561,-420.0,0.00023013,2]
[363166902,1748605862571,-420.0,0.00023013,2]
[363166903,1748605862581,-420.0,0.00023013,2]
[363166904,1748605862591,-420.0,0.00023013,2]
[363166905,1748605862601,-420.0,0.00023013,2]
[363166906,1748605862610,-420.0,0.00023013,2]
[363166907,1748605862620,-420.0,0.00023013,2]
[363166908,1748605862629,-420.0,0.00023013,2]
[363166909,1748605862638,-420.0,0.00023013,2]
[363166910,1748605862648,-420.0,0.00023013,2]
[363166911,1748605862658,-518.46,0.00023013,2]
[363166912,1748605862669,-420.0,0.00023013,2]
[363166913,1748605862678,-545.5,0.00023013,2]
[363166914,1748605862687,-813.25,0.00023013,2]
[363166915,1748605862698,-640.53,0.00023013,2]
[363166916,1748605862708,-420.0,0.00023013,2]
[363166917,1748605862717,-443.73,0.00023013,2]
[363166918,1748605862727,-451.86,0.00023013,2]
[363166919,1748605862736,-420.0,0.00023013,2]
[363166920,1748605862746,-310.82825119,0.00023013,2]
[363166921,1748605862755,-420.0,0.00023013,2]
[363166922,1748605862764,-420.0,0.00023013,2]
[363166923,1748605862774,-420.0,0.00023013,2]
[363166924,1748605862783,-639.7,0.00023013,2]
[363166925,1748605862792,-448.12,0.00023013,2]
[363166926,1748605862801,-420.0,0.00023013,2]
[363166927,1748605862810,-481.65,0.00023013,2]
[363166928,1748605862820,-597.99,0.00023013,2]
[363166929,1748605862830,-482.97,0.00023013,2]
[363166930,1748605862839,-772.6,0.00023013,2]
[363166931,1748605862849,-530.64,0.00023013,2]
[363166932,1748605862859,-420.0,0.00023013,2]
[363166933,1748605862868,-420.0,0.00023013,2]
[363166934,1748605862878,-580.34,0.00023013,2]
[363166935,1748605862887,-459.95,0.00023013,2]
[363166936,1748605862896,-420.0,0.00023013,2]
[363166937,1748605862906,-520.83,0.00023013,2]
[363166938,1748605862915,-643.46,0.00023013,2]
[363166939,1748605862924,-420.0,0.00023013,2]
[363166940,1748605862934,-420.0,0.00023013,2]
[363166941,1748605862944,-1080.01,0.00023013,2]
[363166942,1748605862953,-420.0,0.00023013,2]
[363166943,1748605862963,-420.0,0.00023013,2]
[363166944,1748605862972,-420.0,0.00023013,2]
[363166945,1748605862981,-420.0,0.00023013,2]
[363166946,1748605862990,-420.0,0.00023013,2]
[363166947,1748605863000,-420.0,0.00023013,2]
[363166948,1748605863009,-420.0,0.00023013,2]
[363166949,1748605863018,-726.53,0.00023013,2]
[363166950,1748605863028,-534.73,0.00023013,2]
[363166951,1748605863038,-1440.61,0.00023013,2]
[363166952,1748605863048,-420.0,0.00023013,2]
[363166953,1748605863057,-420.0,0.00023013,2]
[363166954,1748605863066,-420.0,0.00023013,2]
[363166955,1748605863075,-420.0,0.00023013,2]
[363166956,1748605863086,-546.37,0.00023013,2]
[363166957,1748605863095,-883.79,0.00023013,2]
[363166958,1748605863105,-623.56,0.00023013,2]
[363166959,1748605863115,-487.77,0.00023013,2]
[363166960,1748605863125,-420.0,0.00023013,2]
[363166961,1748605863134,-420.0,0.00023013,2]
[363166962,1748605863144,-420.0,0.00023013,2]
[363166963,1748605863154,-420.0,0.00023013,2]
[363166964,1748605863165,-420.0,0.00023013,2]
[363166965,1748605863175,-2189.84,0.00023013,2]
[363166966,1748605863185,-420.0,0.00023013,2]
[363166967,1748605863197,-750.52,0.00023013,2]
[363166968,1748605863206,-420.0,0.00023013,2]
[363166969,1748605863216,-535.44,0.00023013,2]
[363166970,1748605863225,-420.0,0.00023013,2]
[363166971,1748605863235,-420.0,0.00023013,2]
[363166972,1748605863246,-420.0,0.00023013,2]
[363166973,1748605863255,-843.1,0.00023013,2]
[363166974,1748605863265,-420.0,0.00023013,2]
[363166975,1748605863275,-668.42,0.00023013,2]
[363166976,1748605863287,-420.0,0.00023013,2]
[363166977,1748605863297,-821.67,0.00023013,2]
[363166978,1748605863307,-420.0,0.00023013,2]
[363166979,1748605863317,-420.0,0.00023013,2]
[363166980,1748605863329,-420.0,0.00023013,2]
[363166981,1748605863339,-420.0,0.00023013,2]
[363166982,1748605863349,-420.0,0.00023013,2]
[363166983,1748605863359,-420.0,0.00023013,2]
[363166984,1748605863369,-1411.13,0.00023013,2]
[363166985,1748605863378,-420.0,0.00023013,2]
[363166986,1748605863388,-420.0,0.00023013,2]
[363166987,1748605863397,-975.17,0.00023013,2]
[363166988,1748605863407,-420.0,0.00023013,2]
[363166989,1748605863416,-1164.67,0.00023013,2]
[363166990,1748605863426,-420.0,0.00023013,2]
[363166991,1748605863435,-420.0,0.00023013,2]
[363166992,1748605863445,-420.0,0.00023013,2]
[363166993,1748605863520,-964.24,0.00023013,2]
[363166994,1748605863530,-562.97,0.00023013,2]
[363166995,1748605863540,-420.0,0.00023013,2]
[363166996,1748605863549,-1756.77,0.00023013,2]
[363166997,1748605863559,-915.09,0.00023013,2]
[363166998,1748605863569,-420.0,0.00023013,2]
[363166999,1748605863578,-916.8,0.00023013,2]
[363167000,1748605863588,-420.0,0.00023013,2]
[363167001,1748605863597,-426.39,0.00023013,2]
[363167002,1748605863607,-528.7,0.00023013,2]
[363167003,1748605863616,-420.0,0.00023013,2]
[363167004,1748605863626,-948.94,0.00023013,2]
[363167005,1748605863635,-420.0,0.00023013,2]
[363167006,1748605863644,-420.0,0.00023013,2]
[363167007,1748605863654,-936.49,0.00023013,2]
[363167008,1748605863665,-929.94,0.00023013,2]
[363167009,1748605863674,-420.0,0.00023013,2]
[363167010,1748605863684,-430.81,0.00023013,2]
[363167011,1748605863693,-420.0,0.00023013,2]
[363167012,1748605863702,-471.97,0.00023013,2]
[363167013,1748605863712,-420.0,0.00023013,2]
[363167014,1748605863721,-1017.69,0.00023013,2]
[363167015,1748605863731,-528.96,0.00023013,2]
[363167016,1748605863741,-873.09,0.00023013,2]
[363167017,1748605863751,-420.0,0.00023013,2]
[363167018,1748605863760,-420.0,0.00023013,2]
[363167019,1748605863770,-395.48756011,0.00023013,2]
[363167020,1748605863779,-1161.61,0.00023013,2]
[363167021,1748605863788,-678.18,0.00023013,2]
[363167022,1748605863797,-975.12,0.00023013,2]
[363167023,1748605863806,-420.0,0.00023013,2]
[363167024,1748605863815,-420.0,0.00023013,2]
[363167025,1748605863825,-420.0,0.00023013,2]
[363167026,1748605863834,-1147.25,0.00023013,2]
[363167027,1748605863843,-864.57,0.00023013,2]
[363167028,1748605863852,-921.63,0.00023013,2]
[363167029,1748605863862,-1120.48,0.00023013,2]
[363167030,1748605863871,-664.44,0.00023013,2]
[363167031,1748605863880,-420.0,0.00023013,2]
[363167032,1748605863890,-420.0,0.00023013,2]
[363167033,1748605863899,-420.0,0.00023013,2]
[363167034,1748605863908,-420.0,0.00023013,2]
[363167035,1748605863921,-927.81,0.00023013,2]
[363167036,1748605863930,-774.57,0.00023013,2]
[363167037,1748605863940,-626.06,0.00023013,2]
[363167038,1748605863950,-498.55179392,0.00023013,2]